[Event "FIDE Womens Grand Swiss 2023"]
[Site "Douglas/Isle of Man"]
[Date "2023.11.04"]
[Round "10.3"]
[White "Stefanova, Antoaneta"]
[Black "Garifullina, Leya"]
[Result "1/2-1/2"]
[ECO "B53"]
[WhiteElo "2424"]
[BlackElo "2402"]
[Annotator "ChessBase"]
[PlyCount "131"]
[EventDate "2023.10.04"]
[EventType "swiss"]
[EventCountry "GBR"]
[SourceTitle "playchess.com"]
[Source "ChessBase"]
[SourceQuality "1"]
[TimeControl "40/6000+30:20/3000+30:900+30"]

1. e4 {[%emt 0:10:05]} c5 {[%emt 0:10:19]} 2. Nf3 {[%emt 0:00:06]} d6 {[%emt 0:00:05]} 3. d4 {[%emt 0:00:22]} cxd4 {[%emt 0:00:07]} 4. Qxd4 {[%emt 0:00:04]} Nf6 {[%emt 0:00:46]} 5. Nc3 {[%emt 0:00:49]} Nc6 {[%emt 0:00:26]} 6. Qe3 {[%emt 0:00:27]} g6 {[%emt 0:03:43]} 7. Bc4 {[%emt 0:02:01]} Bg7 {[%emt 0:01:39]} 8. h3 {[%emt 0:00:12]} O-O {[%emt 0:01:11]} 9. O-O {[%emt 0:00:06]} b6 {[%emt 0:05:52]} 10. Rd1 {[%emt 0:02:22]} Bb7 {[%emt 0:00:49]} 11. a4 {[%emt 0:29:15]} Nd7 {[%emt 0:06:58]} 12. Ra3 {[%emt 0:17:09]} Rc8 {[%emt 0:11:20]} 13. Ba2 {[%emt 0:07:36]} Qe8 {[%emt 0:09:04]} 14. Nd5 {[%emt 0:08:01]} Na5 {[%emt 0:06:49]} 15. Qe2 {[%emt 0:01:52]} h6 {[%emt 0:05:40]} 16. b4 {[%emt 0:03:28]} Nc6 {[%emt 0:00:23]} 17. c3 {[%emt 0:00:33]} Nce5 {[%emt 0:07:20]} 18. Nd2 {[%emt 0:02:02]} e6 {[%emt 0:04:48]} 19. Ne3 {[%emt 0:00:30]} Nf6 {[%emt 0:00:42]} 20. f4 {[%emt 0:01:53]} Ned7 {[%emt 0:00:56]} 21. Bb1 {[%emt 0:03:25]} Qe7 {[%emt 0:00:53]} 22. a5 {[%emt 0:07:51]} Nh5 {[%emt 0:04:09]} 23. axb6 {[%emt 0:00:06]} axb6 {[%emt 0:01:43]} 24. Ra7 {[%emt 0:04:15]} Rc7 {[%emt 0:03:31]} 25. Ndc4 {[%emt 0:01:40]} d5 {[%emt 0:05:01]} 26. Na3 {[%emt 0:00:07]} Nb8 {[%emt 0:03:53]} 27. Nb5 {[%emt 0:01:29]} Nc6 {[%emt 0:00:52]} 28. Ra2 {[%emt 0:01:28]} Rd7 {[%emt 0:01:56]} 29. Qf2 {[%emt 0:01:47]} dxe4 {[%emt 0:03:58]} 30. Rxd7 {[%emt 0:00:15]} Qxd7 {[%emt 0:00:03]} 31. Rd2 {[%emt 0:00:39]} Qe7 {[%emt 0:01:09]} 32. Bxe4 {[%emt 0:00:17]} Nd4 {[%emt 0:02:53]} 33. Bxb7 {[%emt 0:02:53]} Nxb5 {[%emt 0:00:18]} 34. Bf3 {[%emt 0:00:59]} Nxc3 {[%emt 0:00:30]} 35. Nc2 {[%emt 0:00:53]} Nxf4 {[%emt 0:00:40]} 36. Qxb6 {[%emt 0:00:28]} Nfd5 {[%emt 0:01:25]} 37. Qa5 {[%emt 0:00:46]} Qh4 {[%emt 0:03:16]} 38. b5 {[%emt 0:00:32]} Be5 {[%emt 0:01:03]} 39. Bb2 {[%emt 0:00:35]} Qf4 {[%emt 0:01:01]} 40. Rd3 {[%emt 0:00:26]} Qh2+ {[%emt 0:00:36]} 41. Kf1 {[%emt 0:50:08]} Bc7 {[%emt 0:51:28]} 42. Qa1 {[%emt 0:00:00]} Qh1+ {[%emt 0:00:00]} 43. Kf2 {[%emt 0:00:00]} Bb6+ {[%emt 0:00:00]} 44. Kg3 {[%emt 0:00:00]} Bg1 {[%emt 0:00:00]} 45. Bxd5 {[%emt 0:00:00]} Bh2+ {[%emt 0:00:00]} 46. Kf2 {[%emt 0:00:00]} Qxa1 {[%emt 0:00:00]} 47. Nxa1 {[%emt 0:00:00]} Nxd5 {[%emt 0:00:00]} 48. g3 {[%emt 0:00:00]} Rd8 {[%emt 0:00:00]} 49. b6 {[%emt 0:02:37]} h5 {[%emt 0:00:00]} 50. h4 {[%emt 0:02:00]} g5 {[%emt 0:00:00]} 51. hxg5 {[%emt 0:00:54]} h4 {[%emt 0:00:00]} 52. gxh4 {[%emt 0:00:00]} Rb8 {[%emt 0:00:00]} 53. Rxd5 {[%emt 0:00:55]} exd5 {[%emt 0:00:00]} 54. Bd4 {[%emt 0:00:01]} Bd6 {[%emt 0:00:00]} 55. Nc2 {[%emt 0:00:24]} Ra8 {[%emt 0:00:00]} 56. Ne3 {[%emt 0:00:54]} Ra4 {[%emt 0:00:00]} 57. Nf5 {[%emt 0:00:06]} Rxd4 {[%emt 0:00:00]} 58. Nxd4 {[%emt 0:00:04]} Bc5 {[%emt 0:00:00]} 59. Ke3 {[%emt 0:00:14]} Bxb6 {[%emt 0:00:00]} 60. Kd3 {[%emt 0:00:06]} Kh7 {[%emt 0:00:00]} 61. Nc6 {[%emt 0:16:22]} Bf2 {[%emt 0:09:22]} 62. h5 {[%emt 0:00:19]} Bh4 {[%emt 0:00:03]} 63. g6+ {[%emt 0:00:44]} fxg6 {[%emt 0:00:02]} 64. hxg6+ {[%emt 0:00:04]} Kxg6 {[%emt 0:00:02]} 65. Nb4 {[%emt 0:00:05]} Bf6 {[%emt 0:00:03]} 66. Nxd5 {[%emt 0:00:04]} 1/2-1/2

[Event "FIDE Womens Grand Swiss 2023"]
[Site "Douglas/Isle of Man"]
[Date "2023.11.04"]
[Round "10.4"]
[White "Narva, Mai"]
[Black "Munguntuul, Batkhuyag"]
[Result "0-1"]
[ECO "B11"]
[WhiteElo "2399"]
[BlackElo "2366"]
[Annotator "ChessBase"]
[PlyCount "190"]
[EventDate "2023.10.04"]
[EventType "swiss"]
[EventCountry "GBR"]
[SourceTitle "playchess.com"]
[Source "ChessBase"]
[SourceQuality "1"]
[TimeControl "40/6000+30:20/3000+30:900+30"]

1. e4 {[%emt 0:10:04]} c6 {[%emt 0:10:04]} 2. Nc3 {[%emt 0:00:14]} d5 {[%emt 0:00:03]} 3. Nf3 {[%emt 0:00:16]} dxe4 {[%emt 0:00:04]} 4. Nxe4 {[%emt 0:00:07]} Nf6 {[%emt 0:00:05]} 5. Qe2 {[%emt 0:00:25]} Nxe4 {[%emt 0:00:07]} 6. Qxe4 {[%emt 0:00:05]} Qd5 {[%emt 0:00:10]} 7. Qh4 {[%emt 0:00:17]} Bf5 {[%emt 0:01:01]} 8. Bc4 {[%emt 0:00:21]} Qd6 {[%emt 0:00:06]} 9. d3 {[%emt 0:00:20]} e6 {[%emt 0:01:01]} 10. Bf4 {[%emt 0:00:29]} Qe7 {[%emt 0:12:23]} 11. Qg3 {[%emt 0:02:03]} Nd7 {[%emt 0:00:06]} 12. O-O {[%emt 0:13:39]} Nf6 {[%emt 0:02:51]} 13. Nd4 {[%emt 0:08:39]} Bg6 {[%emt 0:03:35]} 14. Rfe1 {[%emt 0:08:10]} Nh5 {[%emt 0:01:03]} 15. Qf3 {[%emt 0:00:48]} Nxf4 {[%emt 0:00:07]} 16. Qxf4 {[%emt 0:04:01]} O-O-O {[%emt 0:00:50]} 17. Nxe6 {[%emt 0:09:43]} fxe6 {[%emt 0:04:49]} 18. Bxe6+ {[%emt 0:00:23]} Rd7 {[%emt 0:00:11]} 19. h4 {[%emt 0:08:46]} Qd6 {[%emt 0:10:18]} 20. Qg4 {[%emt 0:02:46]} Kc7 {[%emt 0:01:34]} 21. h5 {[%emt 0:02:22]} Bf7 {[%emt 0:00:59]} 22. Bxd7 {[%emt 0:01:13]} Qxd7 {[%emt 0:00:03]} 23. Qg5 {[%emt 0:02:04]} h6 {[%emt 0:04:13]} 24. Qh4 {[%emt 0:04:36]} Bd6 {[%emt 0:01:23]} 25. Re4 {[%emt 0:02:35]} Bd5 {[%emt 0:06:02]} 26. Re3 {[%emt 0:06:33]} Rf8 {[%emt 0:06:16]} 27. Rae1 {[%emt 0:01:27]} Rf4 {[%emt 0:02:08]} 28. Qxf4 {[%emt 0:00:45]} Bxf4 {[%emt 0:00:06]} 29. Re7 {[%emt 0:00:06]} Bf7 {[%emt 0:00:50]} 30. R1e4 {[%emt 0:05:40]} Bc1 {[%emt 0:10:45]} 31. g4 {[%emt 0:07:22]} Bd5 {[%emt 0:02:07]} 32. Rxd7+ {[%emt 0:01:50]} Kxd7 {[%emt 0:00:02]} 33. Ra4 {[%emt 0:01:58]} a6 {[%emt 0:01:14]} 34. b3 {[%emt 0:00:38]} c5 {[%emt 0:06:28]} 35. d4 {[%emt 0:06:30]} Kc6 {[%emt 0:01:23]} 36. Kh2 {[%emt 0:00:36]} Bd2 {[%emt 0:01:19]} 37. Kg3 {[%emt 0:00:34]} a5 {[%emt 0:02:00]} 38. dxc5 {[%emt 0:00:30]} Kxc5 {[%emt 0:00:36]} 39. a3 {[%emt 0:00:27]} b5 {[%emt 0:01:53]} 40. b4+ {[%emt 0:00:15]} axb4 {[%emt 0:00:05]} 41. axb4+ {[%emt 0:23:21]} Bxb4 {[%emt 0:26:18]} 42. Ra7 {[%emt 0:00:11]} Bc3 {[%emt 0:00:11]} 43. f3 {[%emt 0:06:20]} b4 {[%emt 0:00:49]} 44. Kf2 {[%emt 0:01:13]} Bd4+ {[%emt 0:01:26]} 45. Ke2 {[%emt 0:00:15]} Bc4+ {[%emt 0:12:38]} 46. Kd2 {[%emt 0:01:07]} Kd6 {[%emt 0:00:13]} 47. Rb7 {[%emt 0:00:54]} Bc3+ {[%emt 0:05:44]} 48. Ke3 {[%emt 0:01:03]} Bg8 {[%emt 0:00:58]} 49. Ke2 {[%emt 0:01:16]} Ke6 {[%emt 0:01:30]} 50. Rb8 {[%emt 0:01:14]} Bf7 {[%emt 0:02:52]} 51. Rb7 {[%emt 0:00:34]} Be8 {[%emt 0:00:55]} 52. Ke3 {[%emt 0:01:29]} Ba4 {[%emt 0:00:30]} 53. Kd3 {[%emt 0:01:34]} Bc6 {[%emt 0:00:21]} 54. Rb6 {[%emt 0:00:27]} Kd7 {[%emt 0:00:19]} 55. Ke3 {[%emt 0:01:08]} Kc7 {[%emt 0:00:35]} 56. Ra6 {[%emt 0:00:07]} Kb7 {[%emt 0:02:58]} 57. Ra5 {[%emt 0:01:21]} b3 {[%emt 0:10:43]} 58. Ra3 {[%emt 0:00:13]} b2 {[%emt 0:00:02]} 59. Rxc3 {[%emt 0:07:14]} Bd5 {[%emt 0:00:14]} 60. Rd3 {[%emt 0:00:53]} b1=Q {[%emt 0:02:55]} 61. Rxd5 {[%emt 0:15:17]} Qxc2 {[%emt 0:15:11]} 62. Rd2 {[%emt 0:05:05]} Qc1 {[%emt 0:00:21]} 63. Ke2 {[%emt 0:00:39]} Kc6 {[%emt 0:00:13]} 64. Rd4 {[%emt 0:01:28]} Kc5 {[%emt 0:00:21]} 65. Re4 {[%emt 0:00:28]} Kd5 {[%emt 0:00:14]} 66. Kf2 {[%emt 0:00:31]} Qc2+ {[%emt 0:02:46]} 67. Kg3 {[%emt 0:00:24]} Qb1 {[%emt 0:01:05]} 68. Kg2 {[%emt 0:00:49]} Qd1 {[%emt 0:01:35]} 69. Re8 {[%emt 0:01:25]} Qc2+ {[%emt 0:00:14]} 70. Kg3 {[%emt 0:00:25]} Qb1 {[%emt 0:00:49]} 71. Kg2 {[%emt 0:00:33]} Kd6 {[%emt 0:00:28]} 72. Re2 {[%emt 0:00:21]} Qd1 {[%emt 0:00:16]} 73. Re4 {[%emt 0:00:10]} Kd7 {[%emt 0:00:11]} 74. Kf2 {[%emt 0:01:01]} Qh1 {[%emt 0:00:20]} 75. Kg3 {[%emt 0:01:05]} Qg1+ {[%emt 0:00:09]} 76. Kf4 {[%emt 0:00:16]} Qf2 {[%emt 0:00:15]} 77. Re5 {[%emt 0:00:38]} Qh2+ {[%emt 0:01:31]} 78. Kf5 {[%emt 0:01:47]} Qg3 {[%emt 0:00:08]} 79. Ke4 {[%emt 0:00:18]} Kd6 {[%emt 0:00:23]} 80. Rf5 {[%emt 0:00:20]} Ke6 {[%emt 0:00:16]} 81. Ke3 {[%emt 0:00:23]} Qc7 {[%emt 0:00:22]} 82. Kf2 {[%emt 0:00:27]} Qh2+ {[%emt 0:01:55]} 83. Ke3 {[%emt 0:00:12]} Qg2 {[%emt 0:00:17]} 84. Rf4 {[%emt 0:00:32]} Qc2 {[%emt 0:00:10]} 85. Re4+ {[%emt 0:00:31]} Kf6 {[%emt 0:00:17]} 86. Kf4 {[%emt 0:00:43]} Qh2+ {[%emt 0:00:37]} 87. Ke3 {[%emt 0:00:05]} Kg5 {[%emt 0:00:09]} 88. Rd4 {[%emt 0:00:52]} Kh4 {[%emt 0:01:19]} 89. Rd5 {[%emt 0:01:03]} Kg3 {[%emt 0:00:06]} 90. Rf5 {[%emt 0:00:38]} Qf2+ {[%emt 0:00:11]} 91. Ke4 {[%emt 0:00:09]} Qe2+ {[%emt 0:00:21]} 92. Kd5 {[%emt 0:00:22]} Qxf3+ {[%emt 0:00:22]} 93. Rxf3+ {[%emt 0:00:21]} Kxf3 {[%emt 0:00:01]} 94. g5 {[%emt 0:00:09]} hxg5 {[%emt 0:00:09]} 95. Ke6 {[%emt 0:00:18]} Kg4 {[%emt 0:00:37]} 0-1

[Event "FIDE Womens Grand Swiss 2023"]
[Site "Douglas/Isle of Man"]
[Date "2023.11.04"]
[Round "10.5"]
[White "Javakhishvili, Lela"]
[Black "Assaubayeva, Bibisara"]
[Result "1/2-1/2"]
[ECO "E60"]
[WhiteElo "2437"]
[BlackElo "2469"]
[Annotator "ChessBase"]
[PlyCount "189"]
[EventDate "2023.10.04"]
[EventType "swiss"]
[EventCountry "GBR"]
[SourceTitle "playchess.com"]
[Source "ChessBase"]
[SourceQuality "1"]
[TimeControl "40/6000+30:20/3000+30:900+30"]

1. d4 {[%emt 0:10:03]} Nf6 {[%emt 0:10:06]} 2. c4 {[%emt 0:00:04]} g6 {[%emt 0:00:05]} 3. g3 {[%emt 0:00:40]} c5 {[%emt 0:00:06]} 4. dxc5 {[%emt 0:00:59]} Na6 {[%emt 0:00:08]} 5. Bg2 {[%emt 0:01:38]} Bg7 {[%emt 0:00:07]} 6. Nc3 {[%emt 0:00:33]} Nxc5 {[%emt 0:00:07]} 7. Nf3 {[%emt 0:05:37]} b6 {[%emt 0:01:57]} 8. O-O {[%emt 0:13:30]} Bb7 {[%emt 0:02:28]} 9. Bf4 {[%emt 0:01:16]} Rc8 {[%emt 0:06:45]} 10. b3 {[%emt 0:08:14]} O-O {[%emt 0:04:49]} 11. Rc1 {[%emt 0:00:09]} d6 {[%emt 0:05:11]} 12. Bh3 {[%emt 0:03:27]} Rb8 {[%emt 0:12:36]} 13. Qd2 {[%emt 0:11:43]} a6 {[%emt 0:06:59]} 14. b4 {[%emt 0:04:50]} Nce4 {[%emt 0:05:59]} 15. Nxe4 {[%emt 0:00:08]} Nxe4 {[%emt 0:01:09]} 16. Qe3 {[%emt 0:01:07]} Qe8 {[%emt 0:12:52]} 17. Bg2 {[%emt 0:16:56]} Nf6 {[%emt 0:08:50]} 18. Qb3 {[%emt 0:03:52]} b5 {[%emt 0:03:52]} 19. c5 {[%emt 0:01:27]} Nd5 {[%emt 0:02:30]} 20. Bd2 {[%emt 0:01:09]} dxc5 {[%emt 0:00:27]} 21. bxc5 {[%emt 0:01:11]} Bc6 {[%emt 0:02:43]} 22. a3 {[%emt 0:04:18]} Qc8 {[%emt 0:05:20]} 23. Rfd1 {[%emt 0:01:03]} Qb7 {[%emt 0:00:30]} 24. Ba5 {[%emt 0:00:46]} Nf6 {[%emt 0:06:53]} 25. Qb4 {[%emt 0:02:57]} Nd5 {[%emt 0:01:58]} 26. Qh4 {[%emt 0:03:12]} Nf6 {[%emt 0:01:27]} 27. Qb4 {[%emt 0:01:55]} Nd5 {[%emt 0:00:04]} 28. Qb3 {[%emt 0:00:17]} Nf6 {[%emt 0:00:10]} 29. Bh3 {[%emt 0:02:31]} Bd5 {[%emt 0:01:04]} 30. Qe3 {[%emt 0:00:20]} e6 {[%emt 0:00:49]} 31. Bc3 {[%emt 0:03:18]} Bxf3 {[%emt 0:02:56]} 32. Bxf6 {[%emt 0:05:37]} Bd5 {[%emt 0:01:50]} 33. Bxg7 {[%emt 0:00:10]} Kxg7 {[%emt 0:00:01]} 34. c6 {[%emt 0:00:34]} Qc7 {[%emt 0:00:09]} 35. Rxd5 {[%emt 0:01:33]} exd5 {[%emt 0:00:02]} 36. Qd4+ {[%emt 0:00:05]} Kg8 {[%emt 0:00:09]} 37. Qxd5 {[%emt 0:00:07]} a5 {[%emt 0:02:30]} 38. Bd7 {[%emt 0:00:28]} b4 {[%emt 0:01:23]} 39. axb4 {[%emt 0:00:03]} axb4 {[%emt 0:00:07]} 40. Rb1 {[%emt 0:00:24]} Rb6 {[%emt 0:02:31]} 41. Rb3 {[%emt 0:50:22]} Rbb8 {[%emt 0:27:26]} 42. h4 {[%emt 0:00:00]} h5 {[%emt 0:00:56]} 43. e4 {[%emt 0:00:00]} Qb6 {[%emt 0:10:08]} 44. Qd6 {[%emt 0:00:00]} Rfc8 {[%emt 0:04:12]} 45. e5 {[%emt 0:00:00]} Qc7 {[%emt 0:00:56]} 46. Qd5 {[%emt 0:00:00]} Re8 {[%emt 0:01:38]} 47. Rf3 {[%emt 0:00:00]} Re7 {[%emt 0:01:16]} 48. e6 {[%emt 0:01:16]} fxe6 {[%emt 0:01:30]} 49. Bxe6+ {[%emt 0:00:00]} Kg7 {[%emt 0:00:32]} 50. Bd7 {[%emt 0:00:39]} b3 {[%emt 0:01:25]} 51. Rxb3 {[%emt 0:03:35]} Rxb3 {[%emt 0:00:05]} 52. Qxb3 {[%emt 0:00:03]} Rxd7 {[%emt 0:00:11]} 53. cxd7 {[%emt 0:00:15]} Qxd7 {[%emt 0:00:04]} 54. Kg2 {[%emt 0:00:11]} Qc6+ {[%emt 0:01:15]} 55. Qf3 {[%emt 0:00:05]} Qc7 {[%emt 0:00:08]} 56. Qd5 {[%emt 0:00:51]} Qe7 {[%emt 0:00:19]} 57. Qd4+ {[%emt 0:00:31]} Kh7 {[%emt 0:00:15]} 58. Qf4 {[%emt 0:00:08]} Kg7 {[%emt 0:00:07]} 59. Qd2 {[%emt 0:01:14]} Qb7+ {[%emt 0:00:09]} 60. f3 {[%emt 0:00:09]} Qc7 {[%emt 0:00:12]} 61. Qf2 {[%emt 0:16:03]} Qb7 {[%emt 0:15:13]} 62. Kh2 {[%emt 0:00:03]} Qc7 {[%emt 0:00:10]} 63. Qg2 {[%emt 0:00:17]} Qb8 {[%emt 0:00:16]} 64. Kh3 {[%emt 0:00:04]} Qc8+ {[%emt 0:00:29]} 65. g4 {[%emt 0:00:06]} hxg4+ {[%emt 0:00:31]} 66. Qxg4 {[%emt 0:00:29]} Qc1 {[%emt 0:01:54]} 67. Qd4+ {[%emt 0:00:14]} Kf7 {[%emt 0:01:43]} 68. Kg4 {[%emt 0:01:13]} Qc8+ {[%emt 0:00:57]} 69. Kg3 {[%emt 0:00:04]} Qc2 {[%emt 0:00:41]} 70. Qd7+ {[%emt 0:00:50]} Kf6 {[%emt 0:00:46]} 71. Qd6+ {[%emt 0:00:56]} Kf7 {[%emt 0:00:28]} 72. Qd5+ {[%emt 0:00:17]} Kf6 {[%emt 0:00:57]} 73. Qg5+ {[%emt 0:00:59]} Kf7 {[%emt 0:00:16]} 74. h5 {[%emt 0:00:34]} gxh5 {[%emt 0:00:24]} 75. Qxh5+ {[%emt 0:00:07]} Kf6 {[%emt 0:00:33]} 76. Qh6+ {[%emt 0:00:18]} Kf7 {[%emt 0:00:20]} 77. Qf4+ {[%emt 0:00:06]} Kg6 {[%emt 0:01:03]} 78. Qd6+ {[%emt 0:00:17]} Kf7 {[%emt 0:00:23]} 79. Qd5+ {[%emt 0:00:47]} Kf6 {[%emt 0:00:14]} 80. Qd4+ {[%emt 0:00:17]} Kf7 {[%emt 0:00:28]} 81. Qe5 {[%emt 0:00:49]} Qg6+ {[%emt 0:00:16]} 82. Kf4 {[%emt 0:00:10]} Qh6+ {[%emt 0:00:54]} 83. Kg4 {[%emt 0:00:48]} Qg6+ {[%emt 0:00:53]} 84. Qg5 {[%emt 0:00:02]} Qb6 {[%emt 0:00:27]} 85. Qf5+ {[%emt 0:00:21]} Kg7 {[%emt 0:00:35]} 86. Qe5+ {[%emt 0:01:05]} Kf7 {[%emt 0:00:18]} 87. Kf4 {[%emt 0:01:44]} Qh6+ {[%emt 0:00:37]} 88. Ke4 {[%emt 0:00:08]} Qc6+ {[%emt 0:01:29]} 89. Kf4 {[%emt 0:00:52]} Qh6+ {[%emt 0:00:40]} 90. Kg4 {[%emt 0:00:21]} Qb6 {[%emt 0:00:12]} 91. Qf5+ {[%emt 0:00:09]} Kg7 {[%emt 0:00:04]} 92. Qg5+ {[%emt 0:00:06]} Kf7 {[%emt 0:00:15]} 93. Kh5 {[%emt 0:00:21]} Qc6 {[%emt 0:00:46]} 94. Qf5+ {[%emt 0:00:17]} Kg7 {[%emt 0:00:17]} 95. Qg5+ {[%emt 0:01:18]} 1/2-1/2

[Event "FIDE Womens Grand Swiss 2023"]
[Site "Douglas/Isle of Man"]
[Date "2023.11.04"]
[Round "10.6"]
[White "Ushenina, Anna"]
[Black "Cramling, Pia"]
[Result "0-1"]
[ECO "A50"]
[WhiteElo "2434"]
[BlackElo "2446"]
[Annotator "ChessBase"]
[PlyCount "102"]
[EventDate "2023.10.04"]
[EventType "swiss"]
[EventCountry "GBR"]
[SourceTitle "playchess.com"]
[Source "ChessBase"]
[SourceQuality "1"]
[TimeControl "40/6000+30:20/3000+30:900+30"]

1. d4 {[%emt 0:10:04]} Nf6 {[%emt 0:10:11]} 2. c4 {[%emt 0:00:21]} e6 {[%emt 0:00:08]} 3. Bf4 {[%emt 0:00:25]} b6 {[%emt 0:11:49]} 4. a3 {[%emt 0:00:12]} Bb7 {[%emt 0:00:22]} 5. Nc3 {[%emt 0:00:25]} d5 {[%emt 0:00:15]} 6. cxd5 {[%emt 0:01:28]} Nxd5 {[%emt 0:00:19]} 7. Nxd5 {[%emt 0:00:10]} Bxd5 {[%emt 0:00:17]} 8. Qc2 {[%emt 0:08:22]} Bd6 {[%emt 0:02:04]} 9. Bxd6 {[%emt 0:00:37]} cxd6 {[%emt 0:00:22]} 10. e4 {[%emt 0:01:25]} Bb7 {[%emt 0:00:16]} 11. Bb5+ {[%emt 0:00:57]} Nd7 {[%emt 0:02:21]} 12. Ne2 {[%emt 0:01:01]} O-O {[%emt 0:02:00]} 13. O-O {[%emt 0:01:11]} Nf6 {[%emt 0:06:48]} 14. f3 {[%emt 0:13:04]} Qe7 {[%emt 0:11:33]} 15. Rfc1 {[%emt 0:17:12]} Rfc8 {[%emt 0:01:15]} 16. Qa4 {[%emt 0:00:21]} a6 {[%emt 0:09:32]} 17. Bd3 {[%emt 0:00:31]} Qd8 {[%emt 0:05:58]} 18. Qb4 {[%emt 0:05:05]} Rxc1+ {[%emt 0:03:28]} 19. Rxc1 {[%emt 0:00:11]} Rc8 {[%emt 0:00:17]} 20. Rd1 {[%emt 0:09:30]} g6 {[%emt 0:01:31]} 21. Nc3 {[%emt 0:03:52]} Qc7 {[%emt 0:01:56]} 22. Rc1 {[%emt 0:04:01]} Qd8 {[%emt 0:02:54]} 23. Rc2 {[%emt 0:01:38]} h5 {[%emt 0:04:26]} 24. Na4 {[%emt 0:08:02]} Rxc2 {[%emt 0:02:03]} 25. Bxc2 {[%emt 0:00:02]} b5 {[%emt 0:03:42]} 26. Nc3 {[%emt 0:00:24]} Bc6 {[%emt 0:01:46]} 27. Na2 {[%emt 0:02:55]} h4 {[%emt 0:05:06]} 28. Qc3 {[%emt 0:02:52]} Qb6 {[%emt 0:01:14]} 29. Kf1 {[%emt 0:01:11]} Nd7 {[%emt 0:04:52]} 30. Nc1 {[%emt 0:05:57]} a5 {[%emt 0:03:16]} 31. Nd3 {[%emt 0:00:53]} Bb7 {[%emt 0:00:54]} 32. b4 {[%emt 0:05:17]} axb4 {[%emt 0:01:27]} 33. axb4 {[%emt 0:00:01]} Nb8 {[%emt 0:02:45]} 34. Bb3 {[%emt 0:04:16]} Nc6 {[%emt 0:03:50]} 35. d5 {[%emt 0:00:04]} Qd4 {[%emt 0:00:21]} 36. Qc2 {[%emt 0:01:22]} exd5 {[%emt 0:00:55]} 37. Bxd5 {[%emt 0:00:34]} Ne5 {[%emt 0:00:33]} 38. Nxe5 {[%emt 0:01:26]} Bxd5 {[%emt 0:00:08]} 39. exd5 {[%emt 0:02:04]} Qxe5 {[%emt 0:00:10]} 40. Qd3 {[%emt 0:00:24]} Qa1+ {[%emt 0:02:25]} 41. Ke2 {[%emt 0:50:24]} Qg1 {[%emt 0:51:55]} 42. Qxb5 {[%emt 0:00:00]} Qxg2+ {[%emt 0:00:00]} 43. Ke3 {[%emt 0:00:00]} Qg1+ {[%emt 0:00:00]} 44. Ke2 {[%emt 0:00:00]} Qxh2+ {[%emt 0:00:00]} 45. Kd3 {[%emt 0:00:00]} h3 {[%emt 0:00:00]} 46. Qc4 {[%emt 0:00:00]} Qg3 {[%emt 0:00:00]} 47. Qc8+ {[%emt 0:00:00]} Kg7 {[%emt 0:00:00]} 48. Qc3+ {[%emt 0:00:00]} Qe5 {[%emt 0:00:00]} 49. Qc4 {[%emt 0:00:00]} h2 {[%emt 0:00:00]} 50. Qh4 {[%emt 0:00:00]} Qh5 {[%emt 0:00:00]} 51. Qd4+ {[%emt 0:00:00]} Kg8 {[%emt 0:00:00]} 0-1

[Event "FIDE Womens Grand Swiss 2023"]
[Site "Douglas/Isle of Man"]
[Date "2023.11.04"]
[Round "10.7"]
[White "Mammadzada, Gunay"]
[Black "Tsolakidou, Stavroula"]
[Result "1/2-1/2"]
[ECO "E95"]
[WhiteElo "2441"]
[BlackElo "2385"]
[Annotator "ChessBase"]
[PlyCount "138"]
[EventDate "2023.10.04"]
[EventType "swiss"]
[EventCountry "GBR"]
[SourceTitle "playchess.com"]
[Source "ChessBase"]
[SourceQuality "1"]
[TimeControl "40/6000+30:20/3000+30:900+30"]

1. Nf3 {[%emt 0:10:06]} Nf6 {[%emt 0:10:07]} 2. c4 {[%emt 0:00:04]} g6 {[%emt 0:00:07]} 3. Nc3 {[%emt 0:00:05]} Bg7 {[%emt 0:00:06]} 4. e4 {[%emt 0:00:03]} d6 {[%emt 0:00:06]} 5. d4 {[%emt 0:00:12]} O-O {[%emt 0:00:14]} 6. Be2 {[%emt 0:00:12]} e5 {[%emt 0:00:21]} 7. O-O {[%emt 0:00:07]} h6 {[%emt 0:01:23]} 8. Re1 {[%emt 0:00:08]} Nbd7 {[%emt 0:00:31]} 9. Qc2 {[%emt 0:01:23]} Re8 {[%emt 0:01:56]} 10. dxe5 {[%emt 0:00:40]} dxe5 {[%emt 0:01:53]} 11. Be3 {[%emt 0:01:47]} c6 {[%emt 0:04:23]} 12. Na4 {[%emt 0:03:06]} Qc7 {[%emt 0:09:15]} 13. c5 {[%emt 0:07:41]} b5 {[%emt 0:05:47]} 14. cxb6 {[%emt 0:05:56]} axb6 {[%emt 0:00:06]} 15. Nd2 {[%emt 0:01:59]} Ba6 {[%emt 0:18:43]} 16. Bf3 {[%emt 0:10:33]} Bf8 {[%emt 0:03:29]} 17. Rec1 {[%emt 0:06:43]} Rec8 {[%emt 0:02:48]} 18. a3 {[%emt 0:15:32]} h5 {[%emt 0:07:41]} 19. Qd1 {[%emt 0:03:53]} Rab8 {[%emt 0:06:32]} 20. h3 {[%emt 0:04:37]} Qd6 {[%emt 0:04:50]} 21. b4 {[%emt 0:02:56]} Kh7 {[%emt 0:03:08]} 22. Be2 {[%emt 0:03:31]} Bxe2 {[%emt 0:01:22]} 23. Qxe2 {[%emt 0:00:03]} Qe6 {[%emt 0:00:31]} 24. Nb2 {[%emt 0:03:44]} Ra8 {[%emt 0:09:42]} 25. Nf3 {[%emt 0:04:21]} Kg8 {[%emt 0:06:53]} 26. Ng5 {[%emt 0:01:11]} Qe7 {[%emt 0:00:16]} 27. Nc4 {[%emt 0:00:28]} Bh6 {[%emt 0:05:02]} 28. Rd1 {[%emt 0:01:28]} b5 {[%emt 0:01:34]} 29. Na5 {[%emt 0:04:35]} Rab8 {[%emt 0:02:30]} 30. Nb3 {[%emt 0:03:28]} c5 {[%emt 0:01:55]} 31. bxc5 {[%emt 0:04:05]} Bxg5 {[%emt 0:00:04]} 32. Bxg5 {[%emt 0:00:14]} Nxc5 {[%emt 0:00:04]} 33. Nxc5 {[%emt 0:01:06]} Rxc5 {[%emt 0:00:03]} 34. Rd3 {[%emt 0:04:19]} Rc6 {[%emt 0:02:23]} 35. Rf3 {[%emt 0:01:27]} Kg7 {[%emt 0:00:30]} 36. Rb1 {[%emt 0:01:45]} Qd7 {[%emt 0:01:12]} 37. Rd1 {[%emt 0:02:03]} Qc7 {[%emt 0:00:34]} 38. Rfd3 {[%emt 0:00:13]} b4 {[%emt 0:00:37]} 39. axb4 {[%emt 0:01:56]} Rxb4 {[%emt 0:00:15]} 40. Qe3 {[%emt 0:00:26]} Rbc4 {[%emt 0:01:01]} 41. Bh6+ {[%emt 0:23:09]} Kh7 {[%emt 0:24:29]} 42. Bf8 {[%emt 0:00:14]} Ng8 {[%emt 0:04:37]} 43. Rd7 {[%emt 0:00:26]} Rc1 {[%emt 0:00:13]} 44. Qd2 {[%emt 0:04:17]} Rxd1+ {[%emt 0:01:58]} 45. Qxd1 {[%emt 0:00:02]} Rc1 {[%emt 0:00:05]} 46. Rxc7 {[%emt 0:00:09]} Rxd1+ {[%emt 0:00:04]} 47. Kh2 {[%emt 0:00:03]} Nh6 {[%emt 0:00:10]} 48. Bxh6 {[%emt 0:08:24]} Kxh6 {[%emt 0:00:05]} 49. Rxf7 {[%emt 0:00:02]} Re1 {[%emt 0:04:20]} 50. f3 {[%emt 0:00:34]} Kg5 {[%emt 0:00:59]} 51. h4+ {[%emt 0:04:45]} Kxh4 {[%emt 0:00:05]} 52. Rf6 {[%emt 0:00:04]} Kg5 {[%emt 0:00:21]} 53. Re6 {[%emt 0:00:01]} Re2 {[%emt 0:00:32]} 54. Kh3 {[%emt 0:03:14]} Re1 {[%emt 0:04:31]} 55. g3 {[%emt 0:01:15]} Re3 {[%emt 0:01:58]} 56. Kg2 {[%emt 0:03:15]} Re2+ {[%emt 0:04:20]} 57. Kf1 {[%emt 0:00:10]} Ra2 {[%emt 0:01:49]} 58. Rxe5+ {[%emt 0:00:13]} Kf6 {[%emt 0:00:04]} 59. f4 {[%emt 0:00:25]} Ra1+ {[%emt 0:00:21]} 60. Kf2 {[%emt 0:00:31]} Ra2+ {[%emt 0:00:03]} 61. Kf3 {[%emt 0:15:52]} Ra3+ {[%emt 0:15:03]} 62. Kg2 {[%emt 0:00:03]} Ra2+ {[%emt 0:00:03]} 63. Kh3 {[%emt 0:00:31]} Re2 {[%emt 0:00:04]} 64. g4 {[%emt 0:05:02]} hxg4+ {[%emt 0:00:12]} 65. Kxg4 {[%emt 0:00:01]} Re3 {[%emt 0:00:10]} 66. Re8 {[%emt 0:00:35]} Kf7 {[%emt 0:00:05]} 67. Re5 {[%emt 0:02:30]} Kf6 {[%emt 0:00:04]} 68. Re8 {[%emt 0:00:04]} Kf7 {[%emt 0:00:04]} 69. Re5 {[%emt 0:00:10]} Kf6 {[%emt 0:00:04]} 1/2-1/2